fUSD/lending_fUSD_20240301
["ID","MTS","AMOUNT","RATE_DAILY","PERIOD"]
[315909648,1709278245244,-500.0,0.00021917,2]
[315909649,1709278245254,-500.0,0.00021917,2]
[315909650,1709278245263,-500.0,0.00021917,2]
[315909651,1709278245272,-500.0,0.00021917,2]
[315909652,1709278245282,-500.0,0.00021917,2]
[315909653,1709278245292,-500.0,0.00021917,2]
[315909654,1709278245301,-500.0,0.00021917,2]
[315909655,1709278245310,-500.0,0.00021917,2]
[315909656,1709278245319,-500.0,0.00021917,2]
[315909657,1709278245329,-485.07449366,0.00021917,2]
[315909658,1709278245338,-500.0,0.00021917,2]
[315909659,1709278245348,-500.0,0.00021917,2]
[315909660,1709278245357,-500.0,0.00021917,2]
[315909661,1709278245366,-500.0,0.00021917,2]
[315909662,1709278245376,-233.02426178,0.00021917,2]
[315909663,1709278245385,-507.21339224,0.00021917,2]
[315909664,1709278245395,-500.0,0.00021917,2]
[315909665,1709278245405,-501.38229751,0.00021917,2]
[315909666,1709278245417,-499.34640342,0.00021917,2]
[315909667,1709278245429,-500.0,0.00021917,2]
[315909668,1709278245438,-500.0,0.00021917,2]
[315909669,1709278245451,-500.0,0.00021917,2]
[315909670,1709278245463,-500.0,0.00021917,2]
[315909671,1709278245473,-500.0,0.00021917,2]
[315909672,1709278245482,-500.0,0.00021917,2]
[315909673,1709278245494,-500.0,0.00021917,2]
[315909674,1709278245503,-691.77,0.00021917,2]
[315909675,1709278245513,-743.73,0.00021917,2]
[315909676,1709278245523,-500.0,0.00021917,2]
[315909677,1709278245532,-500.0,0.00021917,2]
[315909678,1709278245542,-500.0,0.00021917,2]
[315909679,1709278245551,-500.0,0.00021917,2]
[315909680,1709278245561,-500.0,0.00021917,2]
[315909681,1709278245570,-500.0,0.00021917,2]
[315909682,1709278245579,-500.0,0.00021917,2]
[315909683,1709278245589,-975.23,0.00021917,2]
[315909684,1709278245599,-263.27520211,0.00021917,2]
[315909685,1709278245608,-500.0,0.00021917,2]
[315909686,1709278245617,-500.0,0.00021917,2]
[315909687,1709278245627,-500.0,0.00021917,2]
[315909688,1709278245636,-500.0,0.00021917,2]
[315909689,1709278245646,-500.0,0.00021917,2]
[315909690,1709278245655,-262.49966833,0.00021917,2]
[315909691,1709278245664,-549.58880439,0.00021917,2]
[315909692,1709278245674,-500.0,0.00021917,2]
[315909693,1709278245684,-255.04041438,0.00021917,2]
[315909694,1709278245694,-500.0,0.00021917,2]
[315909695,1709278245703,-558.56743796,0.00021917,2]
[315909697,1709278245713,-500.0,0.00021917,2]
[315909698,1709278245726,-500.0,0.00021917,2]
[315909700,1709278245736,-500.0,0.00021917,2]
[315909702,1709278245748,-531.66189598,0.00021917,2]
[315909703,1709278245757,-500.0,0.00021917,2]
[315909704,1709278245767,-500.0,0.00021917,2]
[315909705,1709278245777,-500.0,0.00021917,2]
[315909706,1709278245787,-506.25899395,0.00021917,2]
[315909707,1709278245798,-500.0,0.00021917,2]
[315909708,1709278245807,-500.0,0.00021917,2]
[315909709,1709278245817,-500.0,0.00021917,2]
[315909710,1709278245827,-504.26121744,0.00021917,2]
[315909711,1709278245836,-500.0,0.00021917,2]
[315909712,1709278245846,-501.37354302,0.00021917,2]
[315909713,1709278245856,-500.0,0.00021917,2]
[315909714,1709278245866,-502.31845258,0.00021917,2]
[315909715,1709278245876,-500.0,0.00021917,2]
[315909716,1709278245886,-503.21517828,0.00021917,2]
[315909717,1709278245895,-503.34545092,0.00021917,2]
[315909718,1709278245905,-500.0,0.00021917,2]
[315909719,1709278245915,-500.0,0.00021917,2]
[315909720,1709278245924,-388.2941591,0.00021917,2]
[315909721,1709278245934,-500.0,0.00021917,2]
[315909722,1709278245943,-546.78335914,0.00021917,2]
[315909723,1709278245953,-504.95909001,0.00021917,2]
[315909724,1709278245964,-500.0,0.00021917,2]
[315909725,1709278245973,-500.0,0.00021917,2]
[315909726,1709278245982,-500.0,0.00021917,2]
[315909727,1709278245995,-500.0,0.00021917,2]
[315909728,1709278246005,-500.0,0.00021917,2]
[315909729,1709278246015,-505.33555857,0.00021917,2]
[315909730,1709278246024,-518.71388395,0.00021917,2]
[315909731,1709278246033,-228.69337891,0.00021917,2]
[315909732,1709278246043,-522.75839565,0.00021917,2]
[315909733,1709278246053,-500.0,0.00021917,2]
[315909734,1709278246063,-521.75889179,0.00021917,2]
[315909735,1709278246073,-500.0,0.00021917,2]
[315909736,1709278246082,-500.0,0.00021917,2]
[315909737,1709278246092,-509.74288396,0.00021917,2]
[315909738,1709278246102,-500.0,0.00021917,2]
[315909739,1709278246112,-583.65,0.00021917,2]
[315909740,1709278246121,-500.0,0.00021917,2]
[315909741,1709278246131,-500.0,0.00021917,2]
[315909742,1709278246140,-500.0,0.00021917,2]
[315909743,1709278246150,-514.27516504,0.00021917,2]
[315909744,1709278246160,-687.51,0.00021917,2]
[315909745,1709278246171,-500.95480486,0.00021917,2]
[315909746,1709278246182,-500.22593753,0.00021917,2]
[315909747,1709278246191,-500.0,0.00021917,2]
[315909748,1709278246202,-500.0,0.00021917,2]
[315909749,1709278246213,-500.0,0.00021917,2]
[315909750,1709278246222,-500.0,0.00021917,2]
[315909751,1709278246233,-515.1275962,0.00021917,2]
[315909752,1709278246243,-500.0,0.00021917,2]
[315909754,1709278246252,-503.43017979,0.00021917,2]
[315909755,1709278246262,-500.0,0.00021917,2]
[315909756,1709278246272,-500.0,0.00021917,2]
[315909757,1709278246281,-500.0,0.00021917,2]
[315909758,1709278246291,-500.0,0.00021917,2]
[315909759,1709278246301,-502.45453108,0.00021917,2]
[315909760,1709278246311,-519.60492512,0.00021917,2]
[315909761,1709278246320,-500.0,0.00021917,2]
[315909762,1709278246329,-504.87808433,0.00021917,2]
[315909763,1709278246339,-500.0,0.00021917,2]
[315909764,1709278246349,-509.64838346,0.00021917,2]
[315909765,1709278246359,-505.00929462,0.00021917,2]
[315909766,1709278246369,-500.0,0.00021917,2]
[315909767,1709278246378,-500.0,0.00021917,2]
[315909768,1709278246388,-500.0,0.00021917,2]
[315909769,1709278246397,-500.0,0.00021917,2]
[315909770,1709278246406,-523.83889544,0.00021917,2]
[315909771,1709278246419,-500.0,0.00021917,2]
[315909772,1709278246429,-500.0,0.00021917,2]
[315909773,1709278246438,-821.46,0.00021917,2]
[315909774,1709278246448,-500.0,0.00021917,2]
[315909775,1709278246460,-500.0,0.00021917,2]
[315909776,1709278246470,-500.0,0.00021917,2]
[315909777,1709278246480,-134.33256695,0.00021917,2]
[315909778,1709278246527,-365.66743305,0.00021917,2]
[315909779,1709278246537,-500.0,0.00021917,2]
[315909780,1709278246547,-500.0,0.00021917,2]
[315909781,1709278246557,-500.0,0.00021917,2]
[315909782,1709278246567,-500.0,0.00021917,2]
[315909783,1709278246576,-500.0,0.00021917,2]
[315909784,1709278246585,-560.3,0.00021917,2]
[315909785,1709278246594,-500.0,0.00021917,2]
[315909786,1709278246605,-500.0,0.00021917,2]
[315909787,1709278246614,-500.0,0.00021917,2]
[315909788,1709278246624,-620.2,0.00021917,2]
[315909789,1709278246633,-500.0,0.00021917,2]
[315909790,1709278246643,-500.0,0.00021917,2]
[315909791,1709278246653,-500.0,0.00021917,2]
[315909792,1709278246662,-500.0,0.00021917,2]
[315909793,1709278246672,-500.0,0.00021917,2]
[315909794,1709278246681,-500.0,0.00021917,2]
[315909795,1709278246691,-500.0,0.00021917,2]
[315909796,1709278246700,-696.56,0.00021917,2]
[315909797,1709278246710,-836.67,0.00021917,2]
[315909798,1709278246719,-500.0,0.00021917,2]
[315909799,1709278246729,-513.39914059,0.00021917,2]
[315909800,1709278246738,-500.0,0.00021917,2]
[315909801,1709278246748,-500.0,0.00021917,2]
[315909802,1709278246757,-500.0,0.00021917,2]
[315909803,1709278246767,-500.0,0.00021917,2]
[315909804,1709278246777,-500.0,0.00021917,2]
[315909805,1709278246787,-500.0,0.00021917,2]
[315909806,1709278246799,-501.9717572,0.00021917,2]
[315909807,1709278246820,-500.0,0.00021917,2]
[315909808,1709278246830,-500.0,0.00021917,2]
[315909809,1709278246840,-500.0,0.00021917,2]
[315909810,1709278246850,-500.0,0.00021917,2]
[315909811,1709278246860,-500.0,0.00021917,2]
[315909812,1709278246870,-508.76,0.00021917,2]
[315909813,1709278246879,-500.0,0.00021917,2]
[315909814,1709278246889,-500.0,0.00021917,2]
[315909815,1709278246900,-500.0,0.00021917,2]
[315909816,1709278246909,-500.0,0.00021917,2]
[315909817,1709278246919,-500.0,0.00021917,2]
[315909818,1709278246929,-500.0,0.00021917,2]
[315909819,1709278246939,-500.0,0.00021917,2]
[315909820,1709278246949,-500.0,0.00021917,2]
[315909821,1709278246959,-500.0,0.00021917,2]
[315909822,1709278246969,-500.0,0.00021917,2]
[315909823,1709278246979,-500.0,0.00021917,2]
[315909824,1709278246989,-500.0,0.00021917,2]
[315909825,1709278246998,-500.0,0.00021917,2]
[315909826,1709278247008,-500.0,0.00021917,2]
[315909827,1709278247018,-500.0,0.00021917,2]
[315909828,1709278247028,-500.0,0.00021917,2]
[315909829,1709278247038,-500.0,0.00021917,2]
[315909830,1709278247048,-500.0,0.00021917,2]
[315909831,1709278247057,-500.0,0.00021917,2]
[315909832,1709278247067,-500.0,0.00021917,2]
[315909833,1709278247076,-206.65835231,0.00021917,2]
[315909834,1709278247086,-979.91,0.00021917,2]
[315909835,1709278247096,-500.0,0.00021917,2]
[315909836,1709278247105,-851.82,0.00021917,2]
[315909837,1709278247115,-500.0,0.00021917,2]
[315909838,1709278247124,-537.1,0.00021917,2]
[315909839,1709278247135,-500.0,0.00021917,2]
[315909840,1709278247145,-1109.01,0.00021917,2]
[315909841,1709278247154,-500.0,0.00021917,2]
[315909842,1709278247164,-500.0,0.00021917,2]
[315909843,1709278247174,-500.0,0.00021917,2]
[315909844,1709278247183,-500.0,0.00021917,2]
[315909845,1709278247193,-506.49165312,0.00021917,2]
[315909846,1709278247203,-500.0,0.00021917,2]
[315909847,1709278247214,-525.68,0.00021917,2]
[315909848,1709278247223,-500.0,0.00021917,2]
[315909849,1709278247232,-1743.78,0.00021917,2]
[315909850,1709278247245,-509.29,0.00021917,2]
[315909851,1709278247255,-504.28192622,0.00021917,2]
[315909852,1709278247265,-500.0,0.00021917,2]
[315909853,1709278247274,-500.0,0.00021917,2]
[315909854,1709278247284,-500.0,0.00021917,2]
[315909855,1709278247294,-500.0,0.00021917,2]
[315909856,1709278247303,-500.0,0.00021917,2]
[315909857,1709278247313,-500.0,0.00021917,2]
[315909858,1709278247323,-500.0,0.00021917,2]
[315909859,1709278247334,-500.0,0.00021917,2]
[315909860,1709278247345,-500.0,0.00021917,2]
[315909861,1709278247354,-510.41,0.00021917,2]
[315909862,1709278247364,-667.52,0.00021917,2]
[315909863,1709278247374,-500.0,0.00021917,2]
[315909864,1709278247384,-500.0,0.00021917,2]
[315909865,1709278247395,-987.91,0.00021917,2]
[315909866,1709278247404,-624.52,0.00021917,2]
[315909867,1709278247416,-500.0,0.00021917,2]
[315909868,1709278247425,-500.0,0.00021917,2]
[315909869,1709278247437,-1203.11,0.00021917,2]
[315909870,1709278247448,-500.0,0.00021917,2]
[315909871,1709278247458,-500.0,0.00021917,2]
[315909872,1709278247469,-640.98,0.00021917,2]
[315909873,1709278247479,-500.0,0.00021917,2]
[315909874,1709278247489,-500.0,0.00021917,2]
[315909875,1709278247499,-500.0,0.00021917,2]
[315909876,1709278247513,-500.0,0.00021917,2]
[315909877,1709278247522,-500.0,0.00021917,2]
[315909878,1709278247532,-500.0,0.00021917,2]
[315909879,1709278247542,-500.0,0.00021917,2]
[315909880,1709278247552,-500.0,0.00021917,2]
[315909881,1709278247561,-500.0,0.00021917,2]
[315909882,1709278247571,-500.0,0.00021917,2]
[315909883,1709278247580,-585.58,0.00021917,2]
[315909884,1709278247590,-500.0,0.00021917,2]
[315909885,1709278247602,-500.0,0.00021917,2]
[315909886,1709278247611,-500.0,0.00021917,2]
[315909887,1709278247621,-500.0,0.00021917,2]
[315909888,1709278247630,-500.0,0.00021917,2]
[315909889,1709278247639,-500.0,0.00021917,2]
[315909890,1709278247649,-712.41,0.00021917,2]
[315909891,1709278247658,-500.0,0.00021917,2]
[315909892,1709278247668,-314.77973121,0.00021917,2]
[315909893,1709278247677,-500.0,0.00021917,2]
[315909894,1709278247687,-500.0,0.00021917,2]
[315909895,1709278247696,-500.0,0.00021917,2]
[315909896,1709278247706,-500.0,0.00021917,2]
[315909897,1709278247717,-510.35502814,0.00021917,2]
[315909898,1709278247726,-500.0,0.00021917,2]
[315909899,1709278247735,-500.0,0.00021917,2]
[315909900,1709278247745,-543.02178495,0.00021917,2]
[315909901,1709278247754,-500.0,0.00021917,2]
[315909902,1709278247763,-500.0,0.00021917,2]
[315909903,1709278247772,-500.0,0.00021917,2]
[315909904,1709278247782,-500.0,0.00021917,2]
[315909905,1709278247794,-910.5,0.00021917,2]
[315909906,1709278247804,-500.0,0.00021917,2]
[315909907,1709278247814,-502.29288913,0.00021917,2]
[315909908,1709278247824,-500.0,0.00021917,2]
[315909909,1709278247833,-500.0,0.00021917,2]
[315909910,1709278247843,-500.0,0.00021917,2]
[315909911,1709278247854,-500.0,0.00021917,2]
[315909912,1709278247864,-500.0,0.00021917,2]
[315909913,1709278247874,-516.67756595,0.00021917,2]
[315909914,1709278247884,-537.65,0.00021917,2]
[315909915,1709278247894,-500.0,0.00021917,2]
[315909916,1709278247905,-500.0,0.00021917,2]
[315909917,1709278247915,-500.0,0.00021917,2]
[315909918,1709278247926,-500.0,0.00021917,2]
[315909919,1709278247937,-500.0,0.00021917,2]
[315909920,1709278247948,-500.0,0.00021917,2]
[315909921,1709278247957,-500.0,0.00021917,2]
[315909922,1709278248342,-500.0,0.00021917,2]
[315909923,1709278248356,-536.64,0.00021917,2]
[315909924,1709278248366,-500.0,0.00021917,2]
[315909925,1709278248375,-500.0,0.00021917,2]
[315909926,1709278248385,-573.46,0.00021917,2]
[315909927,1709278248395,-500.0,0.00021917,2]
[315909928,1709278248405,-500.0,0.00021917,2]
[315909929,1709278248420,-500.0,0.00021917,2]
[315909930,1709278248439,-500.0,0.00021917,2]
[315909931,1709278248449,-500.0,0.00021917,2]
[315909932,1709278248458,-798.24,0.00021917,2]
[315909933,1709278248469,-510.8,0.00021917,2]
[315909934,1709278248478,-500.0,0.00021917,2]
[315909935,1709278248488,-500.0,0.00021917,2]
[315909936,1709278248497,-541.21,0.00021917,2]
[315909937,1709278248507,-513.22282255,0.00021917,2]
[315909938,1709278248516,-300.0598905,0.00021917,2]
[315909939,1709278248525,-515.44983174,0.00021917,2]
[315909940,1709278248535,-501.66,0.00021917,2]
[315909941,1709278248546,-636.47,0.00021917,2]
[315909942,1709278248556,-500.0,0.00021917,2]
[315909943,1709278248565,-500.0,0.00021917,2]
[315909944,1709278248575,-459.92321557,0.00021917,2]
[315909945,1709278248585,-500.0,0.00021917,2]
[315909946,1709278248594,-556.89113088,0.00021917,2]
[315909947,1709278248604,-1139.45,0.00021917,2]
[315909948,1709278248613,-500.0,0.00021917,2]
[315909949,1709278248623,-500.0,0.00021917,2]
[315909950,1709278248632,-500.0,0.00021917,2]
[315909951,1709278248642,-500.0,0.00021917,2]
[315909952,1709278248651,-500.0,0.00021917,2]
[315909953,1709278248661,-500.0,0.00021917,2]
[315909954,1709278248671,-500.0,0.00021917,2]
[315909955,1709278248680,-1432.91,0.00021917,2]
[315909956,1709278248689,-933.41,0.00021917,2]
[315909957,1709278248699,-500.0,0.00021917,2]
[315909958,1709278248708,-500.0,0.00021917,2]
[315909959,1709278248719,-500.0,0.00021917,2]
[315909960,1709278248728,-500.0,0.00021917,2]
[315909961,1709278248737,-500.0,0.00021917,2]
[315909962,1709278248747,-500.0,0.00021917,2]
[315909963,1709278248761,-500.0,0.00021917,2]
[315909964,1709278248771,-500.0,0.00021917,2]
[315909965,1709278248781,-500.0,0.00021917,2]
[315909966,1709278248791,-500.0,0.00021917,2]
[315909967,1709278248802,-498.79494376,0.00021917,2]
[315909968,1709278248812,-500.0,0.00021917,2]
[315909969,1709278248822,-508.26355319,0.00021917,2]
[315909970,1709278248832,-500.0,0.00021917,2]
[315909971,1709278248842,-722.38,0.00021917,2]
[315909972,1709278248851,-500.0,0.00021917,2]
[315909973,1709278248861,-500.0,0.00021917,2]
[315909974,1709278248871,-500.0,0.00021917,2]
[315909975,1709278248881,-500.0,0.00021917,2]
[315909976,1709278248891,-501.9555255,0.00021917,2]
[315909977,1709278248901,-378.57915505,0.00021917,2]
[315909978,1709278248911,-504.36130641,0.00021917,2]
[315909979,1709278248920,-500.0,0.00021917,2]
[315909980,1709278248929,-761.28,0.00021917,2]
[315909981,1709278248939,-500.0,0.00021917,2]
[315909982,1709278248949,-500.0,0.00021917,2]
[315909983,1709278248959,-500.0,0.00021917,2]
[315909984,1709278248969,-500.0,0.00021917,2]
[315909985,1709278248979,-500.0,0.00021917,2]
[315909986,1709278248989,-798.69,0.00021917,2]
[315909987,1709278248999,-611.7,0.00021917,2]
[315909988,1709278249009,-500.0,0.00021917,2]
[315909989,1709278249018,-500.0,0.00021917,2]
[315909990,1709278249028,-500.0,0.00021917,2]
[315909991,1709278249038,-500.0,0.00021917,2]
[315909992,1709278249048,-500.0,0.00021917,2]
[315909993,1709278249057,-500.0,0.00021917,2]
[315909994,1709278249067,-519.06182941,0.00021917,2]
[315909995,1709278249077,-527.54,0.00021917,2]
[315909996,1709278249086,-643.46,0.00021917,2]
[315909997,1709278249096,-500.0,0.00021917,2]
[315909998,1709278249106,-671.81,0.00021917,2]
[315909999,1709278249116,-500.0,0.00021917,2]
[315910000,1709278249126,-500.0,0.00021917,2]
[315910001,1709278249136,-500.0,0.00021917,2]
[315910002,1709278249145,-513.07720663,0.00021917,2]
[315910003,1709278249156,-762.74,0.00021917,2]
[315910004,1709278249166,-500.0,0.00021917,2]
[315910005,1709278249176,-500.0,0.00021917,2]
[315910006,1709278249185,-691.88,0.00021917,2]
[315910007,1709278249194,-500.0,0.00021917,2]
[315910008,1709278249204,-500.0,0.00021917,2]
[315910009,1709278249215,-500.4346869,0.00021917,2]
[315910010,1709278249224,-500.0,0.00021917,2]
[315910011,1709278249234,-500.0,0.00021917,2]
[315910012,1709278249244,-500.0,0.00021917,2]
[315910013,1709278249255,-500.0,0.00021917,2]
[315910014,1709278249264,-806.49,0.00021917,2]
[315910015,1709278249274,-500.0,0.00021917,2]
[315910016,1709278249284,-153.28,0.00021917,2]
[315910017,1709278249294,-560.31,0.00021917,2]
[315910018,1709278249305,-505.01378281,0.00021917,2]
[315910019,1709278249315,-261.08612897,0.00021917,2]
[315910020,1709278249325,-500.0,0.00021917,2]
[315910021,1709278249336,-518.24,0.00021917,2]
[315910022,1709278249346,-500.0,0.00021917,2]
[315910023,1709278249355,-500.0,0.00021917,2]
[315910024,1709278249365,-500.0,0.00021917,2]
[315910025,1709278249375,-500.0,0.00021917,2]
[315910026,1709278249385,-1024.13,0.00021917,2]
[315910027,1709278249394,-500.0,0.00021917,2]
[315910028,1709278249404,-500.0,0.00021917,2]
[315910029,1709278249417,-500.0,0.00021917,2]
[315910030,1709278249426,-544.32,0.00021917,2]
[315910031,1709278249436,-500.0,0.00021917,2]
[315910032,1709278249446,-500.0,0.00021917,2]
[315910033,1709278249456,-500.0,0.00021917,2]
[315910034,1709278249466,-500.0,0.00021917,2]
[315910035,1709278249475,-500.0,0.00021917,2]
[315910036,1709278249485,-500.0,0.00021917,2]
[315910037,1709278249495,-500.0,0.00021917,2]
[315910038,1709278249506,-500.0,0.00021917,2]
[315910039,1709278249516,-500.0,0.00021917,2]
[315910040,1709278249526,-554.11,0.00021917,2]
[315910041,1709278249535,-605.77,0.00021917,2]
[315910042,1709278249545,-819.83,0.00021917,2]
[315910043,1709278249555,-500.0,0.00021917,2]
[315910044,1709278249565,-504.08466959,0.00021917,2]
[315910045,1709278249575,-500.0,0.00021917,2]
[315910046,1709278249585,-500.0,0.00021917,2]
[315910047,1709278249594,-500.0,0.00021917,2]
[315910048,1709278249604,-500.0,0.00021917,2]
[315910049,1709278249613,-500.0,0.00021917,2]
[315910050,1709278249623,-876.53,0.00021917,2]
[315910051,1709278249634,-500.0,0.00021917,2]
[315910052,1709278249643,-1234.44,0.00021917,2]
[315910053,1709278249652,-500.0,0.00021917,2]
[315910054,1709278249662,-500.0,0.00021917,2]
[315910055,1709278249671,-1639.74,0.00021917,2]
[315910056,1709278249681,-500.0,0.00021917,2]
[315910057,1709278249690,-500.0,0.00021917,2]
[315910058,1709278249700,-500.0,0.00021917,2]
[315910059,1709278249710,-500.0,0.00021917,2]
[315910060,1709278249720,-500.0,0.00021917,2]
[315910061,1709278249729,-502.14032609,0.00021917,2]
[315910062,1709278249738,-995.85,0.00021917,2]
[315910063,1709278249748,-4034.36,0.00021917,2]
[315910064,1709278249758,-500.0,0.00021917,2]
[315910065,1709278249768,-500.0,0.00021917,2]
[315910066,1709278249777,-9784.39,0.00021917,2]
[315910067,1709278249787,-500.0,0.00021917,2]
[315910068,1709278249796,-259.18664157,0.00021917,2]
[315910069,1709278249805,-500.0,0.00021917,2]
[315910070,1709278249815,-500.0,0.00021917,2]
[315910071,1709278249825,-2722.27,0.00021917,2]
[315910072,1709278249834,-500.0,0.00021917,2]
[315910073,1709278249843,-900.83,0.00021917,2]
[315910074,1709278249853,-1121.83,0.00021917,2]
[315910075,1709278249862,-500.0,0.00021917,2]
[315910076,1709278249871,-500.0,0.00021917,2]
[315910077,1709278249881,-500.0,0.00021917,2]
[315910078,1709278249890,-500.0,0.00021917,2]
[315910079,1709278249899,-500.0,0.00021917,2]
[315910080,1709278249908,-1740.66,0.00021917,2]
[315910081,1709278249917,-500.0,0.00021917,2]
[315910082,1709278249927,-9176.94,0.00021917,2]
[315910083,1709278249936,-500.0,0.00021917,2]
[315910084,1709278249945,-500.0,0.00021917,2]
[315910085,1709278249955,-515.88146597,0.00021917,2]
[315910086,1709278249965,-500.0,0.00021917,2]
[315910087,1709278249975,-500.0,0.00021917,2]
[315910088,1709278249984,-591.8,0.00021917,2]
[315910089,1709278249995,-685.53,0.00021917,2]
[315910090,1709278250005,-567.63,0.00021917,2]
[315910091,1709278250015,-500.0,0.00021917,2]
[315910092,1709278250024,-1415.29,0.00021917,2]
[315910093,1709278250035,-500.0,0.00021917,2]
[315910094,1709278250045,-735.42,0.00021917,2]
[315910095,1709278250055,-547.89562041,0.00021917,2]
[315910096,1709278250065,-393.36476081,0.00021917,2]
[315910097,1709278250075,-1158.16,0.00021917,2]
[315910098,1709278250085,-500.0,0.00021917,2]
[315910099,1709278250095,-500.0,0.00021917,2]
[315910100,1709278250105,-1180.63,0.00021917,2]
[315910101,1709278250114,-500.0,0.00021917,2]
[315910102,1709278250124,-500.0,0.00021917,2]
[315910103,1709278250133,-604.82,0.00021917,2]
[315910104,1709278250143,-500.0,0.00021917,2]
[315910105,1709278250152,-500.0,0.00021917,2]
[315910106,1709278250162,-500.0,0.00021917,2]
[315910107,1709278250172,-5109.12,0.00021917,2]
[315910108,1709278250182,-2190.48,0.00021917,2]
[315910109,1709278250192,-623.16,0.00021917,2]
[315910110,1709278250201,-500.0,0.00021917,2]
[315910111,1709278250211,-604.20320139,0.00021917,2]
[315910112,1709278250220,-500.0,0.00021917,2]
[315910113,1709278250230,-2101.04,0.00021917,2]
[315910114,1709278250240,-1547.74,0.00021917,2]
[315910115,1709278250250,-500.0,0.00021917,2]
[315910116,1709278250260,-760.73,0.00021917,2]
[315910117,1709278250271,-767.39,0.00021917,2]
[315910118,1709278250281,-646.88,0.00021917,2]
[315910119,1709278250291,-822.19,0.00021917,2]
[315910120,1709278250302,-630.1,0.00021917,2]
[315910121,1709278250311,-500.0,0.00021917,2]
[315910122,1709278250321,-2608.05,0.00021917,2]
[315910123,1709278250331,-500.0,0.00021917,2]
[315910124,1709278250341,-497.48739853,0.00021917,2]
[315910125,1709278250351,-507.935158,0.00021917,2]
[315910126,1709278250361,-500.0,0.00021917,2]
[315910127,1709278250371,-500.0,0.00021917,2]
[315910128,1709278250380,-500.0,0.00021917,2]
[315910129,1709278250390,-939.38,0.00021917,2]
[315910130,1709278250400,-500.0,0.00021917,2]
[315910131,1709278250410,-1755.87,0.00021917,2]
[315910132,1709278250420,-1653.42,0.00021917,2]
[315910133,1709278250430,-500.0,0.00021917,2]
[315910134,1709278250443,-928.86,0.00021917,2]
[315910135,1709278250453,-534.44,0.00021917,2]
[315910136,1709278250463,-500.0,0.00021917,2]
[315910137,1709278250473,-2642.39,0.00021917,2]
[315910138,1709278250483,-500.0,0.00021917,2]
[315910139,1709278250493,-1080.47,0.00021917,2]
[315910140,1709278250503,-500.0,0.00021917,2]
[315910141,1709278250515,-500.0,0.00021917,2]
[315910142,1709278250525,-5177.97,0.00021917,2]
[315910143,1709278250535,-2048.48,0.00021917,2]
[315910144,1709278250545,-500.0,0.00021917,2]
[315910145,1709278250556,-1131.19,0.00021917,2]
[315910146,1709278250565,-1148.45,0.00021917,2]
[315910147,1709278250576,-1273.03,0.00021917,2]
[315910148,1709278250586,-701.85,0.00021917,2]
[315910149,1709278250596,-500.0,0.00021917,2]
[315910150,1709278250606,-500.0,0.00021917,2]
[315910151,1709278250616,-1735.29,0.00021917,2]